[Event "Early-Titled-Tuesday-Blitz-May-07-2024"]
[Site "Chess.com"]
[Date "2024.05.07"]
[Round "1"]
[White "AttilaTurzo"]
[Black "nochewycandy"]
[Result "0-1"]
[WhiteElo "2454"]
[BlackElo "2811"]
[TimeControl "180+1"]
[EndTime "8:08:08 PDT"]
[Termination "nochewycandy won on time"]

1. e4 {[%clk 0:03:00.9]} 1... g6 {[%clk 0:02:57.7]} 2. d4 {[%clk 0:02:59.8]}
2... Bg7 {[%clk 0:02:58.6]} 3. c3 {[%clk 0:02:58.8]} 3... d6 {[%clk 0:02:58.8]}
4. Nf3 {[%clk 0:02:58.4]} 4... Nf6 {[%clk 0:02:59.4]} 5. Bd3 {[%clk 0:02:58.3]}
5... O-O {[%clk 0:03:00.2]} 6. O-O {[%clk 0:02:57.6]} 6... Nc6 {[%clk
0:03:00.9]} 7. h3 {[%clk 0:02:54.8]} 7... e5 {[%clk 0:03:00.3]} 8. dxe5 {[%clk
0:02:54.4]} 8... dxe5 {[%clk 0:02:59.7]} 9. Be3 {[%clk 0:02:54.5]} 9... Qe7
{[%clk 0:02:59.5]} 10. Qc2 {[%clk 0:02:50.8]} 10... b6 {[%clk 0:02:53.3]} 11.
Nbd2 {[%clk 0:02:48.1]} 11... Bb7 {[%clk 0:02:53]} 12. Rfd1 {[%clk 0:02:40.1]}
12... a5 {[%clk 0:02:51.5]} 13. a4 {[%clk 0:02:39.5]} 13... Nd7 {[%clk
0:02:50.1]} 14. Nc4 {[%clk 0:02:28.5]} 14... Nc5 {[%clk 0:02:48.8]} 15. Bf1
{[%clk 0:02:27.5]} 15... h6 {[%clk 0:02:42.1]} 16. Nfd2 {[%clk 0:02:22.3]} 16...
f5 {[%clk 0:02:37.6]} 17. f3 {[%clk 0:02:15.7]} 17... Rad8 {[%clk 0:02:33.1]}
18. Nb3 {[%clk 0:01:54.9]} 18... Ne6 {[%clk 0:02:25.1]} 19. Rxd8 {[%clk
0:01:50.7]} 19... Ncxd8 {[%clk 0:02:21]} 20. Bd3 {[%clk 0:01:40.9]} 20... Qf6
{[%clk 0:01:58.4]} 21. Ncd2 {[%clk 0:01:34.8]} 21... Nf4 {[%clk 0:01:51.8]} 22.
Bf1 {[%clk 0:01:32.4]} 22... Qg5 {[%clk 0:01:41.1]} 23. Kh2 {[%clk 0:01:31.8]}
23... Qe7 {[%clk 0:01:33.5]} 24. Re1 {[%clk 0:01:23.5]} 24... Nde6 {[%clk
0:01:29.9]} 25. Bc4 {[%clk 0:00:59.3]} 25... Kh8 {[%clk 0:01:29.2]} 26. Bxe6
{[%clk 0:00:50.1]} 26... Nxe6 {[%clk 0:01:28.4]} 27. Nc1 {[%clk 0:00:45]} 27...
Qh4 {[%clk 0:01:24]} 28. g3 {[%clk 0:00:39.7]} 28... Qf6 {[%clk 0:01:14.9]} 29.
Bg1 {[%clk 0:00:34.3]} 29... fxe4 {[%clk 0:01:08.7]} 30. fxe4 {[%clk 0:00:30.1]}
30... h5 {[%clk 0:01:06.6]} 31. Qd1 {[%clk 0:00:26.2]} 31... h4 {[%clk
0:01:06.1]} 32. Qg4 {[%clk 0:00:23.8]} 32... hxg3+ {[%clk 0:01:05.8]} 33. Qxg3
{[%clk 0:00:23.9]} 33... Bh6 {[%clk 0:01:04.8]} 34. Be3 {[%clk 0:00:21.2]} 34...
Nf4 {[%clk 0:01:05.2]} 35. Rf1 {[%clk 0:00:20.5]} 35... Kh7 {[%clk 0:01:01.8]}
36. Nd3 {[%clk 0:00:19.3]} 36... g5 {[%clk 0:00:56.6]} 37. Nf2 {[%clk
0:00:18.2]} 37... Qg6 {[%clk 0:00:55.1]} 38. Ng4 {[%clk 0:00:18.1]} 38... Bg7
{[%clk 0:00:55.9]} 39. Qf3 {[%clk 0:00:16.8]} 39... Nd3 {[%clk 0:00:49.9]} 40.
Qg2 {[%clk 0:00:14.3]} 40... Rxf1 {[%clk 0:00:42.6]} 41. Qxf1 {[%clk 0:00:13.4]}
41... Nxb2 {[%clk 0:00:43.3]} 42. Nf3 {[%clk 0:00:09.1]} 42... Bxe4 {[%clk
0:00:34.6]} 43. Nxg5+ {[%clk 0:00:08.3]} 43... Kg8 {[%clk 0:00:35.3]} 44. Nxe4
{[%clk 0:00:07.1]} 44... Qxe4 {[%clk 0:00:34.8]} 45. Bh6 {[%clk 0:00:05.4]}
45... Qc2+ {[%clk 0:00:16.2]} 46. Kh1 {[%clk 0:00:04.5]} 46... Qe4+ {[%clk
0:00:15.7]} 47. Kh2 {[%clk 0:00:04.7]} 47... Qc2+ {[%clk 0:00:15.9]} 48. Kh1
{[%clk 0:00:04.9]} 48... Qg6 {[%clk 0:00:16.8]} 49. Bxg7 {[%clk 0:00:04.3]}
49... Kxg7 {[%clk 0:00:16.6]} 50. Qe2 {[%clk 0:00:03]} 50... Nd3 {[%clk
0:00:13.6]} 51. Qe3 {[%clk 0:00:01.8]} 51... c5 {[%clk 0:00:07.4]} 52. Qf3
{[%clk 0:00:00.7]} 52... e4 {[%clk 0:00:05.9]} 53. Qg3 {[%clk 0:00:01.2]} 53...
b5 {[%clk 0:00:04.8]} 54. Qc7+ {[%clk 0:00:01.6]} 54... Qf7 {[%clk 0:00:04.9]}
55. Qc6 {[%clk 0:00:00.8]} 55... Qf3+ {[%clk 0:00:04.9]} 56. Kh2 {[%clk
0:00:00.2]} 56... Qe2+ {[%clk 0:00:05.4]} 57. Kg3 {[%clk 0:00:00.1]} 57... Qf3+
{[%clk 0:00:05.9]} 0-1

[Event "Early-Titled-Tuesday-Blitz-May-07-2024"]
[Site "Chess.com"]
[Date "2024.05.07"]
[Round "1"]
[White "Heinza9"]
[Black "Skatchkov_V"]
[Result "1/2-1/2"]
[WhiteElo "2356"]
[BlackElo "2635"]
[TimeControl "180+1"]
[EndTime "8:08:08 PDT"]
[Termination "Game drawn - insufficient material"]

1. e4 {[%clk 0:02:55.3]} 1... e5 {[%clk 0:02:57.3]} 2. Nf3 {[%clk 0:02:54.4]}
2... d5 {[%clk 0:02:56.8]} 3. Nxe5 {[%clk 0:02:53.4]} 3... Bd6 {[%clk
0:02:56.3]} 4. d4 {[%clk 0:02:53.5]} 4... dxe4 {[%clk 0:02:56.7]} 5. Nc4 {[%clk
0:02:50.6]} 5... Nc6 {[%clk 0:02:57.2]} 6. Be3 {[%clk 0:02:46.9]} 6... Nge7
{[%clk 0:02:47.2]} 7. Nxd6+ {[%clk 0:02:42.1]} 7... Qxd6 {[%clk 0:02:06.3]} 8.
Nc3 {[%clk 0:02:41.5]} 8... O-O {[%clk 0:02:05.9]} 9. h3 {[%clk 0:02:40.6]} 9...
f5 {[%clk 0:02:05.1]} 10. g3 {[%clk 0:02:36]} 10... Ng6 {[%clk 0:02:03.8]} 11.
Bc4+ {[%clk 0:02:32.4]} 11... Kh8 {[%clk 0:02:03]} 12. Qd2 {[%clk 0:02:29.2]}
12... Na5 {[%clk 0:01:58.4]} 13. Bb3 {[%clk 0:02:13.1]} 13... Nxb3 {[%clk
0:01:54.4]} 14. axb3 {[%clk 0:02:12.9]} 14... Bd7 {[%clk 0:01:51.3]} 15. O-O-O
{[%clk 0:02:12.3]} 15... a5 {[%clk 0:01:50.9]} 16. Ne2 {[%clk 0:02:02]} 16... a4
{[%clk 0:01:49.8]} 17. b4 {[%clk 0:01:52.8]} 17... Bb5 {[%clk 0:01:47]} 18. Nf4
{[%clk 0:01:39.5]} 18... Ne5 {[%clk 0:01:46.8]} 19. dxe5 {[%clk 0:01:33.4]}
19... Qxe5 {[%clk 0:01:45.4]} 20. Qd5 {[%clk 0:01:31.6]} 20... Qf6 {[%clk
0:01:41.6]} 21. Bd4 {[%clk 0:01:27]} 21... Qa6 {[%clk 0:01:37.6]} 22. Ne6 {[%clk
0:01:22]} 22... Rf7 {[%clk 0:01:33.8]} 23. Nc5 {[%clk 0:01:16.8]} 23... Qh6+
{[%clk 0:01:31.1]} 24. Be3 {[%clk 0:01:15.6]} 24... Qf6 {[%clk 0:01:30]} 25. Qe6
{[%clk 0:01:04.5]} 25... a3 {[%clk 0:01:23.3]} 26. Qxf6 {[%clk 0:01:03.6]} 26...
gxf6 {[%clk 0:01:24.2]} 27. bxa3 {[%clk 0:01:02.1]} 27... b6 {[%clk 0:01:23.8]}
28. Nb3 {[%clk 0:00:57.3]} 28... Rxa3 {[%clk 0:01:22.9]} 29. Kb2 {[%clk
0:00:57.3]} 29... Ra4 {[%clk 0:01:22.8]} 30. c3 {[%clk 0:00:55.1]} 30... Ra8
{[%clk 0:01:20]} 31. Nd4 {[%clk 0:00:50.3]} 31... Bc4 {[%clk 0:01:19.6]} 32. Ra1
{[%clk 0:00:48.8]} 32... Rd8 {[%clk 0:01:19.9]} 33. Rhd1 {[%clk 0:00:46.5]}
33... Rfd7 {[%clk 0:01:19.9]} 34. Rd2 {[%clk 0:00:36.9]} 34... c5 {[%clk
0:01:18.7]} 35. Nb3 {[%clk 0:00:33.2]} 35... Bd3 {[%clk 0:01:18.7]} 36. bxc5
{[%clk 0:00:31.7]} 36... bxc5 {[%clk 0:01:19]} 37. Bxc5 {[%clk 0:00:28]} 37...
Rb8 {[%clk 0:01:13.3]} 38. Bb4 {[%clk 0:00:22.1]} 38... Rdb7 {[%clk 0:01:07.9]}
39. Nc5 {[%clk 0:00:20.9]} 39... Rxb4+ {[%clk 0:01:07.7]} 40. cxb4 {[%clk
0:00:20.7]} 40... Rxb4+ {[%clk 0:01:08.6]} 41. Ka3 {[%clk 0:00:19.9]} 41... Rd4
{[%clk 0:01:06.4]} 42. Nxd3 {[%clk 0:00:20]} 42... exd3 {[%clk 0:01:07.3]} 43.
Rad1 {[%clk 0:00:19.9]} 43... f4 {[%clk 0:01:07.3]} 44. Rxd3 {[%clk 0:00:19.4]}
44... Re4 {[%clk 0:01:08.2]} 45. gxf4 {[%clk 0:00:18.2]} 45... Rxf4 {[%clk
0:01:09.1]} 46. R1d2 {[%clk 0:00:16]} 46... Kg7 {[%clk 0:01:08.9]} 47. Kb3
{[%clk 0:00:15.5]} 47... Kg6 {[%clk 0:01:08.7]} 48. Kc3 {[%clk 0:00:15.8]} 48...
Kh5 {[%clk 0:01:09.1]} 49. Rd4 {[%clk 0:00:15.9]} 49... Rf3+ {[%clk 0:01:09.4]}
50. R2d3 {[%clk 0:00:16.3]} 50... Rxf2 {[%clk 0:01:09.4]} 51. Kc4 {[%clk
0:00:16.4]} 51... f5 {[%clk 0:01:09.2]} 52. Rd7 {[%clk 0:00:14.8]} 52... h6
{[%clk 0:01:09.4]} 53. R3d5 {[%clk 0:00:14.1]} 53... Rf3 {[%clk 0:01:09.5]} 54.
Rf7 {[%clk 0:00:12.2]} 54... Kg6 {[%clk 0:01:09.5]} 55. Rf8 {[%clk 0:00:09.8]}
55... h5 {[%clk 0:01:07.7]} 56. h4 {[%clk 0:00:09.3]} 56... Rf4+ {[%clk
0:01:07.9]} 57. Rd4 {[%clk 0:00:09.8]} 57... Rf1 {[%clk 0:01:05.9]} 58. Rg8+
{[%clk 0:00:10]} 58... Kf7 {[%clk 0:01:05.2]} 59. Rg5 {[%clk 0:00:10.2]} 59...
Kf6 {[%clk 0:01:04.6]} 60. Rd6+ {[%clk 0:00:08.9]} 60... Ke5 {[%clk 0:01:04.8]}
61. Rd5+ {[%clk 0:00:09.3]} 61... Ke4 {[%clk 0:01:05.4]} 62. Rxh5 {[%clk
0:00:09]} 62... Rc1+ {[%clk 0:01:05.3]} 63. Kb3 {[%clk 0:00:09.2]} 63... Kxd5
{[%clk 0:01:05.7]} 64. Rxf5+ {[%clk 0:00:09.2]} 64... Ke4 {[%clk 0:01:06.3]} 65.
Rf8 {[%clk 0:00:08.9]} 65... Rh1 {[%clk 0:01:06.7]} 66. h5 {[%clk 0:00:09]}
66... Rxh5 {[%clk 0:01:06]} 67. Re8+ {[%clk 0:00:09.3]} 67... Kd5 {[%clk
0:01:06.4]} 68. Rd8+ {[%clk 0:00:09.4]} 68... Kc6 {[%clk 0:01:06.8]} 69. Rc8+
{[%clk 0:00:09.3]} 69... Kb7 {[%clk 0:01:07]} 70. Rc3 {[%clk 0:00:09.3]} 70...
Rg5 {[%clk 0:01:07.6]} 71. Kb4 {[%clk 0:00:08.7]} 71... Kb6 {[%clk 0:01:08.2]}
72. Rc4 {[%clk 0:00:09]} 72... Rb5+ {[%clk 0:01:08.9]} 73. Kc3 {[%clk
0:00:08.7]} 73... Rf5 {[%clk 0:01:09.8]} 74. Kb4 {[%clk 0:00:08.5]} 74... Rf3
{[%clk 0:01:10.3]} 75. Rc3 {[%clk 0:00:08.3]} 75... Rf1 {[%clk 0:01:11]} 76. Rh3
{[%clk 0:00:06.9]} 76... Rf4+ {[%clk 0:01:09.1]} 77. Kc3 {[%clk 0:00:06.7]}
77... Kb5 {[%clk 0:01:09.7]} 78. Rh5+ {[%clk 0:00:05.6]} 78... Ka4 {[%clk
0:01:10.3]} 79. Rc5 {[%clk 0:00:04.6]} 79... Rb4 {[%clk 0:01:10.6]} 80. Rc4
{[%clk 0:00:04.1]} 80... Rxc4+ {[%clk 0:01:10.9]} 81. Kxc4 {[%clk 0:00:04.6]}
1/2-1/2

[Event "Early-Titled-Tuesday-Blitz-May-07-2024"]
[Site "Chess.com"]
[Date "2024.05.07"]
[Round "1"]
[White "Matsanovic"]
[Black "ChEsper99"]
[Result "1-0"]
[WhiteElo "2603"]
[BlackElo "2264"]
[TimeControl "180+1"]
[EndTime "8:08:08 PDT"]
[Termination "Matsanovic won by resignation"]

1. e4 {[%clk 0:03:00.9]} 1... c6 {[%clk 0:02:57.7]} 2. Nc3 {[%clk 0:02:59.8]}
2... d5 {[%clk 0:02:57.7]} 3. Nf3 {[%clk 0:03:00.3]} 3... dxe4 {[%clk
0:02:54.4]} 4. Nxe4 {[%clk 0:03:00.3]} 4... Nf6 {[%clk 0:02:53.9]} 5. Ng3 {[%clk
0:03:00.5]} 5... Bg4 {[%clk 0:02:44.1]} 6. Bc4 {[%clk 0:02:58]} 6... e6 {[%clk
0:02:43.4]} 7. h3 {[%clk 0:02:54.4]} 7... Bxf3 {[%clk 0:02:43.3]} 8. Qxf3 {[%clk
0:02:55.3]} 8... Nbd7 {[%clk 0:02:42.9]} 9. Qe2 {[%clk 0:02:53.1]} 9... Be7
{[%clk 0:02:35.8]} 10. c3 {[%clk 0:02:47.2]} 10... O-O {[%clk 0:02:35.1]} 11. d4
{[%clk 0:02:47.4]} 11... c5 {[%clk 0:02:35.5]} 12. dxc5 {[%clk 0:02:43.3]} 12...
Bxc5 {[%clk 0:02:31.3]} 13. O-O {[%clk 0:02:44.2]} 13... Qc7 {[%clk 0:02:28.5]}
14. Ne4 {[%clk 0:02:43.3]} 14... Nxe4 {[%clk 0:02:25.9]} 15. Qxe4 {[%clk
0:02:44.2]} 15... Nf6 {[%clk 0:02:26.5]} 16. Qe2 {[%clk 0:02:42.4]} 16... a6
{[%clk 0:02:24.9]} 17. a4 {[%clk 0:02:41.3]} 17... h6 {[%clk 0:02:17]} 18. Rd1
{[%clk 0:02:30.1]} 18... Rac8 {[%clk 0:02:17]} 19. Bb3 {[%clk 0:02:14.6]} 19...
Rfd8 {[%clk 0:02:05.3]} 20. Rxd8+ {[%clk 0:02:08.8]} 20... Rxd8 {[%clk
0:02:05.1]} 21. Bc2 {[%clk 0:02:09.3]} 21... Bd6 {[%clk 0:02:03.6]} 22. Be3
{[%clk 0:02:07.9]} 22... Bf4 {[%clk 0:02:02.9]} 23. Bd4 {[%clk 0:02:07.5]} 23...
e5 {[%clk 0:01:56]} 24. Be3 {[%clk 0:02:07]} 24... Bxe3 {[%clk 0:01:56.3]} 25.
Qxe3 {[%clk 0:02:07.3]} 25... Nd5 {[%clk 0:01:47.6]} 26. Qe4 {[%clk 0:02:05.2]}
26... Nf6 {[%clk 0:01:33.3]} 27. Qe3 {[%clk 0:02:05.2]} 27... Nd5 {[%clk
0:01:33]} 28. Qd3 {[%clk 0:01:50.5]} 28... Nf6 {[%clk 0:01:28.3]} 29. Qe2 {[%clk
0:01:48.8]} 29... Nd5 {[%clk 0:01:13.3]} 30. g3 {[%clk 0:01:46]} 30... Kh8
{[%clk 0:01:01.2]} 31. Re1 {[%clk 0:01:43.1]} 31... Re8 {[%clk 0:00:52.4]} 32.
Rd1 {[%clk 0:01:39.5]} 32... Nf6 {[%clk 0:00:48.8]} 33. Qe3 {[%clk 0:01:32]}
33... Re7 {[%clk 0:00:34.7]} 34. Re1 {[%clk 0:01:13]} 34... b6 {[%clk
0:00:28.8]} 35. Qd3 {[%clk 0:01:06.4]} 35... a5 {[%clk 0:00:24.2]} 36. Bb3
{[%clk 0:01:03]} 36... Rd7 {[%clk 0:00:22.8]} 37. Qe3 {[%clk 0:01:01.9]} 37...
e4 {[%clk 0:00:22.3]} 38. Rd1 {[%clk 0:00:54.8]} 38... Rxd1+ {[%clk 0:00:20.8]}
39. Bxd1 {[%clk 0:00:55.7]} 39... Qd6 {[%clk 0:00:21.2]} 40. Bc2 {[%clk
0:00:54.3]} 40... Qd5 {[%clk 0:00:14.9]} 41. Kf1 {[%clk 0:00:40]} 41... b5
{[%clk 0:00:12.4]} 42. b3 {[%clk 0:00:35.2]} 42... bxa4 {[%clk 0:00:12]} 43.
bxa4 {[%clk 0:00:36.1]} 43... g6 {[%clk 0:00:10.7]} 44. Qxh6+ {[%clk 0:00:34]}
44... Kg8 {[%clk 0:00:11.3]} 45. Qe3 {[%clk 0:00:32.2]} 45... Kg7 {[%clk
0:00:11.8]} 46. Qd4 {[%clk 0:00:28.7]} 46... Qa2 {[%clk 0:00:11.5]} 47. Bxe4
{[%clk 0:00:28.2]} 47... Qa1+ {[%clk 0:00:02.6]} 48. Kg2 {[%clk 0:00:26.2]}
48... Qb2 {[%clk 0:00:03.1]} 49. Bc6 {[%clk 0:00:24.3]} 49... Qc2 {[%clk
0:00:01.9]} 50. g4 {[%clk 0:00:19.3]} 50... g5 {[%clk 0:00:01.9]} 51. Qe5 {[%clk
0:00:17.3]} 51... Qg6 {[%clk 0:00:01.8]} 52. Kg3 {[%clk 0:00:13.8]} 52... Qd3+
{[%clk 0:00:01.6]} 53. Kg2 {[%clk 0:00:13]} 53... Qc4 {[%clk 0:00:02]} 54. Qxg5+
{[%clk 0:00:12.2]} 1-0

[Event "Early-Titled-Tuesday-Blitz-May-07-2024"]
[Site "Chess.com"]
[Date "2024.05.07"]
[Round "1"]
[White "Artyom_ChessMate"]
[Black "klifus"]
[Result "1-0"]
[WhiteElo "2578"]
[BlackElo "2187"]
[TimeControl "180+1"]
[EndTime "8:08:09 PDT"]
[Termination "Artyom_ChessMate won by checkmate"]

1. e4 {[%clk 0:03:00.5]} 1... c5 {[%clk 0:02:58.7]} 2. Nc3 {[%clk 0:03:00.2]}
2... Nc6 {[%clk 0:02:57.4]} 3. Bb5 {[%clk 0:02:59]} 3... Nd4 {[%clk 0:02:55.4]}
4. Nf3 {[%clk 0:02:59.3]} 4... Nxb5 {[%clk 0:02:52.8]} 5. Nxb5 {[%clk
0:03:00.2]} 5... a6 {[%clk 0:02:51.8]} 6. Nc3 {[%clk 0:03:00.4]} 6... e6 {[%clk
0:02:46.6]} 7. d4 {[%clk 0:02:59.8]} 7... cxd4 {[%clk 0:02:45.7]} 8. Qxd4 {[%clk
0:03:00.7]} 8... Qc7 {[%clk 0:02:31.1]} 9. Bg5 {[%clk 0:02:54.2]} 9... f6 {[%clk
0:02:26.9]} 10. Be3 {[%clk 0:02:52.1]} 10... Ne7 {[%clk 0:02:21.5]} 11. O-O-O
{[%clk 0:02:51.3]} 11... Nc6 {[%clk 0:02:20.9]} 12. Qb6 {[%clk 0:02:45.5]} 12...
Bd6 {[%clk 0:02:13.6]} 13. Rhe1 {[%clk 0:02:43.5]} 13... O-O {[%clk 0:02:10.9]}
14. Kb1 {[%clk 0:02:32.8]} 14... Qxb6 {[%clk 0:01:54.6]} 15. Bxb6 {[%clk
0:02:33.7]} 15... Bb4 {[%clk 0:01:51.9]} 16. Re3 {[%clk 0:02:31]} 16... Ba5
{[%clk 0:01:45.9]} 17. Na4 {[%clk 0:02:14.4]} 17... Rb8 {[%clk 0:01:45.3]} 18.
Bxa5 {[%clk 0:02:12.3]} 18... Nxa5 {[%clk 0:01:43.9]} 19. Nb6 {[%clk 0:02:13.2]}
19... Rd8 {[%clk 0:01:41.1]} 20. Red3 {[%clk 0:02:12.5]} 20... Nc6 {[%clk
0:01:33.9]} 21. c3 {[%clk 0:02:08.1]} 21... Kf8 {[%clk 0:01:31.6]} 22. Nxd7+
{[%clk 0:01:47.5]} 22... Bxd7 {[%clk 0:01:31.2]} 23. Rxd7 {[%clk 0:01:48.4]}
23... h5 {[%clk 0:01:27.8]} 24. Kc2 {[%clk 0:01:47.8]} 24... g5 {[%clk
0:01:23.6]} 25. h3 {[%clk 0:01:45.8]} 25... g4 {[%clk 0:01:22.3]} 26. hxg4
{[%clk 0:01:45.9]} 26... hxg4 {[%clk 0:01:22.4]} 27. Nh4 {[%clk 0:01:46.3]}
27... Ke8 {[%clk 0:01:16.5]} 28. Rh7 {[%clk 0:01:41.9]} 28... Rxd1 {[%clk
0:01:15.5]} 29. Kxd1 {[%clk 0:01:42.8]} 29... Rd8+ {[%clk 0:01:15]} 30. Kc2
{[%clk 0:01:38.6]} 30... Rd7 {[%clk 0:01:14.9]} 31. Rxd7 {[%clk 0:01:26.2]}
31... Kxd7 {[%clk 0:01:14.4]} 32. Ng6 {[%clk 0:01:27.1]} 32... f5 {[%clk
0:01:12.9]} 33. Kd3 {[%clk 0:01:25.1]} 33... b5 {[%clk 0:01:11.5]} 34. g3 {[%clk
0:01:23.8]} 34... Ke8 {[%clk 0:01:08]} 35. exf5 {[%clk 0:01:20.2]} 35... exf5
{[%clk 0:01:07]} 36. Nh4 {[%clk 0:01:21.1]} 36... Ne5+ {[%clk 0:01:04.1]} 37.
Kd4 {[%clk 0:01:17.2]} 37... Nc4 {[%clk 0:01:03.8]} 38. b3 {[%clk 0:01:17.3]}
38... Nd6 {[%clk 0:01:00.9]} 39. c4 {[%clk 0:01:11.8]} 39... bxc4 {[%clk
0:00:59.1]} 40. bxc4 {[%clk 0:01:12.7]} 40... Kd7 {[%clk 0:00:57.5]} 41. c5
{[%clk 0:01:12.6]} 41... Ne4 {[%clk 0:00:57.4]} 42. Nxf5 {[%clk 0:01:12.8]}
42... Nxf2 {[%clk 0:00:57.2]} 43. Kd5 {[%clk 0:01:12.7]} 43... Nd3 {[%clk
0:00:54.7]} 44. a3 {[%clk 0:01:11]} 44... Nb2 {[%clk 0:00:44]} 45. Ne3 {[%clk
0:00:54.6]} 45... Na4 {[%clk 0:00:39.1]} 46. Nxg4 {[%clk 0:00:54.8]} 46... Nc3+
{[%clk 0:00:36.2]} 47. Kc4 {[%clk 0:00:55.1]} 47... Ne2 {[%clk 0:00:33.9]} 48.
Ne5+ {[%clk 0:00:55.2]} 48... Kc7 {[%clk 0:00:31.9]} 49. g4 {[%clk 0:00:54.3]}
49... Nf4 {[%clk 0:00:30.2]} 50. g5 {[%clk 0:00:54.5]} 50... Ne6 {[%clk
0:00:25.9]} 51. g6 {[%clk 0:00:54.8]} 51... Ng7 {[%clk 0:00:25.7]} 52. a4 {[%clk
0:00:52.9]} 52... Nf5 {[%clk 0:00:24.8]} 53. a5 {[%clk 0:00:52.7]} 53... Ng7
{[%clk 0:00:24.5]} 54. Kd5 {[%clk 0:00:52.3]} 54... Nh5 {[%clk 0:00:22.6]} 55.
Ke6 {[%clk 0:00:50.2]} 55... Nf4+ {[%clk 0:00:21.7]} 56. Kf5 {[%clk 0:00:44.7]}
56... Nd5 {[%clk 0:00:19.2]} 57. g7 {[%clk 0:00:43.6]} 57... Kb7 {[%clk
0:00:18]} 58. Ke6 {[%clk 0:00:40.5]} 58... Nf4+ {[%clk 0:00:17.1]} 59. Kd7
{[%clk 0:00:34.4]} 59... Nh5 {[%clk 0:00:14.7]} 60. c6+ {[%clk 0:00:34.7]} 60...
Ka7 {[%clk 0:00:13.7]} 61. g8=Q {[%clk 0:00:19.2]} 61... Nf6+ {[%clk 0:00:13]}
62. Kd8 {[%clk 0:00:19.9]} 62... Nxg8 {[%clk 0:00:12.7]} 63. c7 {[%clk
0:00:20.5]} 63... Nf6 {[%clk 0:00:07.6]} 64. Nc6+ {[%clk 0:00:20.8]} 64... Kb7
{[%clk 0:00:06.6]} 65. c8=Q# {[%clk 0:00:21.7]} 1-0

[Event "Early-Titled-Tuesday-Blitz-May-07-2024"]
[Site "Chess.com"]
[Date "2024.05.07"]
[Round "1"]
[White "shirovin"]
[Black "yaguigor"]
[Result "0-1"]
[WhiteElo "2075"]
[BlackElo "2560"]
[TimeControl "180+1"]
[EndTime "8:08:09 PDT"]
[Termination "yaguigor won on time"]

1. e4 {[%clk 0:02:59.8]} 1... c5 {[%clk 0:02:58.7]} 2. Nf3 {[%clk 0:02:56]} 2...
Nc6 {[%clk 0:02:58.5]} 3. d4 {[%clk 0:02:55.4]} 3... cxd4 {[%clk 0:02:59.4]} 4.
Nxd4 {[%clk 0:02:55.5]} 4... Qb6 {[%clk 0:02:59.9]} 5. Nb3 {[%clk 0:02:51.2]}
5... Nf6 {[%clk 0:02:59.7]} 6. Nc3 {[%clk 0:02:49.9]} 6... e6 {[%clk 0:03:00.1]}
7. a3 {[%clk 0:02:48.7]} 7... Qc7 {[%clk 0:02:57.9]} 8. g4 {[%clk 0:02:46.5]}
8... d5 {[%clk 0:02:56.3]} 9. exd5 {[%clk 0:02:15.7]} 9... Nxd5 {[%clk
0:02:55.3]} 10. Nxd5 {[%clk 0:02:14.7]} 10... exd5 {[%clk 0:02:56.2]} 11. Bg2
{[%clk 0:02:13.4]} 11... Qe5+ {[%clk 0:02:37]} 12. Qe2 {[%clk 0:02:11.4]} 12...
Qxe2+ {[%clk 0:02:35.9]} 13. Kxe2 {[%clk 0:02:11]} 13... Bxg4+ {[%clk
0:02:36.4]} 14. Ke1 {[%clk 0:01:56.5]} 14... O-O-O {[%clk 0:02:33.8]} 15. h3
{[%clk 0:01:50.7]} 15... Bf5 {[%clk 0:02:29.1]} 16. Kd1 {[%clk 0:01:38.9]} 16...
Be7 {[%clk 0:02:25.1]} 17. Be3 {[%clk 0:01:33.1]} 17... d4 {[%clk 0:02:22.5]}
18. Bd2 {[%clk 0:01:32]} 18... Bf6 {[%clk 0:02:19.7]} 19. Re1 {[%clk 0:01:26.3]}
19... Rhe8 {[%clk 0:02:18.1]} 20. Rxe8 {[%clk 0:01:17.8]} 20... Rxe8 {[%clk
0:02:19]} 21. Bf4 {[%clk 0:01:17]} 21... Be4 {[%clk 0:02:13.6]} 22. Bf1 {[%clk
0:01:07.8]} 22... g5 {[%clk 0:01:58.5]} 23. Bg3 {[%clk 0:01:06.8]} 23... Be5
{[%clk 0:01:42.3]} 24. Kd2 {[%clk 0:01:03.1]} 24... f5 {[%clk 0:01:40.5]} 25.
Nc5 {[%clk 0:00:57.7]} 25... Bd5 {[%clk 0:01:32.9]} 26. Bxe5 {[%clk 0:00:44.7]}
26... Nxe5 {[%clk 0:01:32]} 27. Be2 {[%clk 0:00:36.8]} 27... Nf3+ {[%clk
0:01:29.2]} 28. Bxf3 {[%clk 0:00:35.7]} 28... Bxf3 {[%clk 0:01:28.8]} 29. Re1
{[%clk 0:00:34.1]} 29... Rxe1 {[%clk 0:01:26.4]} 30. Kxe1 {[%clk 0:00:33.3]}
30... Bg2 {[%clk 0:01:20.4]} 31. Ne6 {[%clk 0:00:29.1]} 31... h6 {[%clk
0:01:19.9]} 32. Nxd4 {[%clk 0:00:27.5]} 32... Bxh3 {[%clk 0:01:20.1]} 33. Ke2
{[%clk 0:00:26.1]} 33... f4 {[%clk 0:01:20]} 34. Nb5 {[%clk 0:00:20.4]} 34... h5
{[%clk 0:01:03.8]} 35. Nxa7+ {[%clk 0:00:19.3]} 35... Kd7 {[%clk 0:01:03.1]} 36.
Nb5 {[%clk 0:00:18.3]} 36... Bf5 {[%clk 0:00:58]} 37. Nd4 {[%clk 0:00:16.9]}
37... Be4 {[%clk 0:00:52.7]} 38. f3 {[%clk 0:00:16.3]} 38... Bd5 {[%clk
0:00:52.6]} 39. Kf2 {[%clk 0:00:15]} 39... g4 {[%clk 0:00:52.2]} 40. b3 {[%clk
0:00:12.4]} 40... g3+ {[%clk 0:00:48]} 41. Kg2 {[%clk 0:00:11.5]} 41... b6
{[%clk 0:00:46.7]} 42. c4 {[%clk 0:00:11.6]} 42... Bf7 {[%clk 0:00:43.1]} 43.
Nf5 {[%clk 0:00:10.9]} 43... Bg6 {[%clk 0:00:37.3]} 44. Nd4 {[%clk 0:00:08.7]}
44... Bd3 {[%clk 0:00:34.8]} 45. Kg1 {[%clk 0:00:04.5]} 45... Kd6 {[%clk
0:00:33]} 46. a4 {[%clk 0:00:04.3]} 46... h4 {[%clk 0:00:24.7]} 47. Kg2 {[%clk
0:00:03.4]} 47... Ke5 {[%clk 0:00:23.4]} 48. Nc6+ {[%clk 0:00:02.1]} 48... Kf6
{[%clk 0:00:23]} 49. Nd4 {[%clk 0:00:01.8]} 49... Kg6 {[%clk 0:00:21.1]} 50. Nc6
{[%clk 0:00:01.2]} 50... Bf5 {[%clk 0:00:19.7]} 51. Ne5+ {[%clk 0:00:00.9]}
51... Kf6 {[%clk 0:00:19.2]} 52. Nc6 {[%clk 0:00:01.3]} 52... h3+ {[%clk
0:00:18.6]} 53. Kg1 {[%clk 0:00:00.4]} 53... h2+ {[%clk 0:00:18.2]} 54. Kg2
{[%clk 0:00:00.2]} 54... Bd3 {[%clk 0:00:17.4]} 0-1